[Event "4NCL 2021-22"]
[Site "England"]
[Date "2022.04.30"]
[Round "7.6"]
[White "Czopor, Maciej"]
[Black "Eggleston, David J"]
[Result "1/2-1/2"]
[ECO "C02"]
[WhiteElo "2416"]
[BlackElo "2343"]
[Annotator "TA"]
[PlyCount "128"]
[EventDate "2021.11.27"]
[EventType "team-tourn"]
[EventCountry "ENG"]
[SourceTitle "playchess.com"]
[Source "ChessBase"]
[SourceQuality "1"]
[TimeControl "40/6000+30:3000+30"]

{[%evp 11,128,-3,-14,-27,-33,-39,-20,-25,-25,-33,-16,-24,13,21,20,-3,64,0,0,0,33,28,70,20,33,0,0,0,0,0,0,33,27,14,28,0,32,-25,-16,-29,-19,-22,-22,-59,-22,-30,0,-75,-30,-87,-79,-88,-98,-63,-77,-114,-25,-186,-186,-261,-241,-270,-191,-308,-343,-331,-122,-366,-37,-426,-447,-433,-235,-229,-235,-225,-209,-205,-226,-207,-207,-203,-189,-147,-180,-162,-19,-19,-19,-19,-19,-39,-19,-19,-19,-19,-19,-19,0,0,0,0,0,-19,0,0,0,0,0,0,0,0,0,0,0,0,0,0,0]} 1. e4 {[%emt 0:00:04]} e6 {[%emt 0:00:12]} 2. d4 {[%emt 0:00:03]} d5 {[%emt 0:00:05]} 3. e5 {[%emt 0:00:04]} c5 {[%emt 0:00:15][%cal Bc7c5,Bc5d4][%mdl 32]} 4. c3 {[%emt 0:00:04]} Nc6 {[%emt 0:00:14]} 5. Nf3 {[%emt 0:00:06]} Qb6 {[%emt 0:00:13]} 6. Bd3 {[%emt 0:00:18]} cxd4 {[%emt 0:00:16]} 7. O-O $1 {[%emt 0:00:07][%mdl 4] is more profitable than 7.cxd4 at the moment. C02: French: Advance Variation.} Bd7 {[%emt 0:00:11]} 8. Re1 {[%emt 0:00:22]} Nge7 {[%emt 0:00:46]} 9. h4 {[%emt 0:00:22]} (9. Nbd2 {is more complex.} dxc3 10. bxc3 Ng6 11. Nb3) 9... a6 {[%emt 0:00:57]} 10. Nbd2 {[%emt 0:00:30]} dxc3 {[%emt 0:02:48]} 11. bxc3 {[%emt 0:00:05] [#]} Nf5 $146 {[%emt 0:09:54]} ({Predecessor:} 11... Qc7 12. c4 Ng6 13. cxd5 exd5 14. Ng5 Be7 15. Ndf3 Nf8 16. Bf4 Ne6 17. Nxe6 Bxe6 {0-1 (36) Alinasab,M (2355)-Erigaisi,A (2675) Ciutadella de Menorca 2022}) 12. Rb1 {[%emt 0:18:48][%mdl 1024] White has compensation.} Qc7 {[%emt 0:00:00]} 13. Nb3 {[%emt 0:01:13]} Rd8 {[%emt 0:07:56]} (13... Be7 $11) 14. h5 {[%emt 0:05:44]} (14. Bxf5 $14 exf5 15. Bg5 (15. Qxd5 $2 Be6 $19)) 14... Be7 $11 {[%emt 0:04:34]} 15. Bf4 {[%emt 0:04:21]} b5 {[%emt 0:17:59]} 16. Qd2 {[%emt 0:13:59]} Qb6 {[%emt 0:12:52]} 17. g4 {[%emt 0:04:28]} (17. Bxf5 $14 exf5 18. h6 (18. Qxd5 $2 Be6 $19)) 17... Nh4 {[%emt 0:03:00]} 18. Nxh4 {[%emt 0:08:25]} Bxh4 {[%emt 0:00:04]} 19. Bg5 {[%emt 0:00:35]} Bxg5 {[%emt 0:01:24]} 20. Qxg5 {[%emt 0:00:06]} g6 {[%emt 0:04:41]} 21. Qh6 {[%emt 0:14:16][%cal Rh5g6]} Ke7 $1 {[%emt 0:01:16]} 22. Qg5+ {[%emt 0:05:09]} Ke8 {[%emt 0:02:20]} 23. Re3 {[%emt 0:02:19][%cal Rh5g6]} Rc8 {[%emt 0:03:28]} 24. Rf3 {[%emt 0:16:14]} ({White should play} 24. Qh6 $14) 24... Qd8 $1 {[%emt 0:07:08]} 25. Qf4 {[%emt 0:00:02][%csl Gf3][%cal Rf4f7]} Qe7 {[%emt 0:00:41]} 26. h6 {[%emt 0:00:13]} Rf8 {[%emt 0:05:49][%cal Of7f6]} 27. Re1 {[%emt 0:03:04]} Qh4 {[%emt 0:03:04]} 28. Kg2 {[%emt 0:04:08]} Qe7 {[%emt 0:01:07]} 29. Nd2 {[%emt 0:05:03]} (29. Kg1 $1 $11) 29... Na5 {[%emt 0:01:19]} 30. Nf1 {[%emt 0:01:54]} (30. Rb1 $11 {keeps the balance.}) 30... Rxc3 $17 {[%emt 0:08:43]} 31. Bxb5 {[%emt 0:01:16]} Rxf3 {[%emt 0:00:05]} 32. Bxd7+ {[%emt 0:00:05]} Kxd7 {[%emt 0:01:17]} 33. Qxf3 {[%emt 0:00:41]} Rb8 {[%emt 0:00:37] Prevents Rb1.} (33... Qb4 $17 34. Re3 Nc4) 34. Ne3 $2 {[%emt 0:00:34]} (34. Nd2 $11 {and White stays safe.}) 34... Nc6 $19 {[%emt 0:02:16]} 35. Rc1 {[%emt 0:00:40]} (35. Nc2 $142) 35... Nxe5 {[%emt 0:02:18]} 36. Qf4 {[%emt 0:00:52]} Qd6 {[%emt 0:00:35] Hoping for ...Rb4.} 37. Qf6 {[%emt 0:00:26]} (37. g5 {was the only chance.}) 37... d4 {[%emt 0:05:07]} 38. Rd1 {[%emt 0:01:23]} Rb2 $2 {[%emt 0:00:01]} (38... Rb5 $19 {[%cal Og6g5] has better winning chances. aiming for ...g5!} 39. Kf1 d3) 39. Kh3 $2 {[%emt 0:00:52]} (39. Nc4 $17 Nxc4 40. Rxd4 Ne3+ 41. Kh3) 39... Kc7 $2 {[%emt 0:02:23]} ({Stronger than} 39... Rxa2 40. Nc4 Ra3+ 41. Nxa3 Qxa3+ 42. Kh4 Nf3+ 43. Kg3 Ne5+ 44. Kh4 $15) ({Better is} 39... d3 $19 40. f4 {[#]} Re2 $1 41. Qxe5 Qxe5 42. fxe5 Rxe3+ 43. Kg2 Ke7) 40. f4 {[%emt 0:01:03][%mdl 8192] [#]} ({Only move:} 40. Rc1+ $1 $15 Kb7 41. Nc4 Nxc4 42. Rxc4) 40... Re2 $1 {[%emt 0:01:47]} 41. Rc1+ {[%emt 0:21:25]} Kd7 {[%emt 0:15:52]} (41... Kb7 $142 {White must now prevent ...Qa3.} 42. Rb1+ Kc6 43. Rc1+ Kb6 44. Rb1+ Kc6 45. Rc1+ Kb7 46. Rb1+ Kc6) 42. fxe5 {[%emt 0:02:48]} Rxe3+ {[%emt 0:00:05][%mdl 4096] Endgame KQR-KQR} 43. Kh4 {[%emt 0:01:49]} Rxe5 {[%emt 0:06:48]} 44. Qxf7+ {[%emt 0:02:04]} Qe7+ {[%emt 0:02:08]} 45. Qxe7+ {[%emt 0:00:11]} Kxe7 {[%emt 0:00:04] KR-KR} 46. Rc7+ {[%emt 0:00:06]} Kf6 {[%emt 0:00:12] Threatens to win with ...Re3.} 47. Rxh7 {[%emt 0:00:55]} g5+ {[%emt 0:00:13]} 48. Kg3 {[%emt 0:00:23]} Kg6 {[%emt 0:01:27]} ({Black should try} 48... Re3+ $19 49. Kf2 Rh3) 49. Rd7 $11 {[%emt 0:04:23]} Kxh6 {[%emt 0:00:18]} 50. Rxd4 {[%emt 0:00:02]} Kg6 {[%emt 0:02:20] ...Re3+ is the strong threat.} 51. Kf3 {[%emt 0:06:14] Against Re3+} Kf6 {[%emt 0:00:51]} 52. Ra4 {[%emt 0:05:36] Against Ra5. The position is equal.} a5 {[%emt 0:00:41]} 53. Rc4 {[%emt 0:00:07]} Ke7 {[%emt 0:02:19]} 54. Rc6 {[%emt 0:01:46]} Kd7 {[%emt 0:01:04]} 55. Ra6 {[%emt 0:02:33]} Rc5 {[%emt 0:01:12]} 56. Ke4 {[%emt 0:00:45]} Ke7 {[%emt 0:09:56]} 57. Ra8 {[%emt 0:02:01]} Kf7 {[%emt 0:02:21] And now ...Rc4+ would win.} 58. Kd4 {[%emt 0:00:58] Inhibits Rc4+.} Rd5+ {[%emt 0:00:40]} 59. Ke4 {[%emt 0:00:04]} Rb5 {[%emt 0:00:46] Strongly threatening ...Rb4+.} 60. a3 {[%emt 0:02:58] Against Rb4+} Kg7 {[%emt 0:02:02]} 61. Re8 {[%emt 0:00:37]} Kf7 {[%emt 0:02:22]} 62. Ra8 {[%emt 0:00:01]} Kf6 {[%emt 0:06:03]} 63. Rf8+ {[%emt 0:00:38]} Ke7 {[%emt 0:00:27]} 64. Ra8 {[%emt 0:00:05]} Kf6 {[%emt 0:00:44] Black had all chances to win.  Weighted Error Value: White=0.28 (precise) /Black=0.30} 1/2-1/2

[Event "4NCL 2021-22"]
[Site "England"]
[Date "2022.04.30"]
[Round "7.8"]
[White "Willow, Jonah B"]
[Black "Pert, Max"]
[Result "1-0"]
[ECO "B12"]
[WhiteElo "2365"]
[BlackElo "1922"]
[Annotator "TA"]
[PlyCount "81"]
[EventDate "2021.11.27"]
[EventType "team-tourn"]
[EventCountry "ENG"]
[SourceTitle "playchess.com"]
[Source "ChessBase"]
[SourceQuality "1"]
[TimeControl "40/6000+30:3000+30"]

{[%evp 9,81,12,9,0,7,-70,10,0,0,13,10,0,28,41,30,0,79,-58,75,58,57,72,129,107,141,129,116,152,155,140,176,187,161,169,235,228,243,235,234,228,264,246,294,291,265,225,207,219,354,360,363,362,354,347,388,390,529,524,540,535,504,445,505,539,521,487,829,812,29991,29992,29994,29995,29997,29996]} 1. e4 {[%emt 0:00:02]} c6 {[%emt 0:00:11]} 2. d4 {[%emt 0:00:06]} d5 {[%emt 0:00:28]} 3. e5 {[%emt 0:00:13]} c5 {[%emt 0:00:49]} 4. dxc5 {[%emt 0:00:05]} e6 {[%emt 0:01:07]} 5. Be3 {[%emt 0:03:03]} Nd7 {[%emt 0:02:22]} 6. Bb5 {[%emt 0:01:35] B12: Caro-Kann: Advance Variation.} Ne7 {[%emt 0:07:55] 6...Ne7 is better than 6...Qc7.} 7. f4 {[%emt 0:03:25]} (7. Nf3 $11) 7... Nc6 {[%emt 0:01:28]} (7... Nf5 $1 $15 8. Bf2 Qa5+ 9. Nc3 a6) 8. Bxc6 {[%emt 0:01:14] Active counter play! The position is equal.} bxc6 {[%emt 0:00:08]} 9. b4 {[%emt 0:00:08] [#]} a5 $146 {[%emt 0:03:44]} ({Predecessor:} 9... g5 10. Nf3 gxf4 11. Bxf4 Bg7 12. Nbd2 Ba6 13. c4 dxc4 14. Ne4 c3 15. Nd6+ Kf8 {0-1 (57) Kakabayaev,M (2285)-Amburgy,R (1989) Chess.com INT 2021}) 10. c3 {[%emt 0:00:51]} Be7 {[%emt 0:05:08]} 11. Nf3 {[%emt 0:01:25]} Ba6 {[%emt 0:02:48]} 12. a3 {[%emt 0:03:47]} O-O {[%emt 0:08:05]} (12... f6 $11) 13. Nbd2 {[%emt 0:02:12]} (13. Nd4 $1 $16) 13... Qc7 {[%emt 0:04:30]} (13... f6 $1 $15 {stays ahead.}) 14. Kf2 {[%emt 0:04:42]} f6 {[%emt 0:02:03][%cal Rf6e5]} 15. Nd4 {[%emt 0:04:10]} Bxc5 {[%emt 0:15:53] White now steadily converts the win.} 16. bxc5 $16 {[%emt 0:02:41]} Nxc5 {[%emt 0:00:08]} 17. N4f3 {[%emt 0:04:45]} ({Don't do} 17. Qg4 $6 fxe5 18. Nxe6 Nxe6 19. Qxe6+ Kh8 $14) 17... Nd3+ {[%emt 0:01:49] [#]} 18. Kg1 $1 {[%emt 0:00:15]} fxe5 {[%emt 0:07:14]} 19. fxe5 {[%emt 0:00:21]} Nxe5 {[%emt 0:02:31]} 20. Nxe5 {[%emt 0:04:40]} Qxe5 {[%emt 0:00:58][%cal Re5e3]} 21. Bd4 {[%emt 0:00:08]} Qf4 {[%emt 0:03:09] [#]} (21... Qd6 {might work better.}) 22. Qe1 $1 $18 {[%emt 0:01:20]} Rf7 {[%emt 0:08:01]} 23. Nf3 {[%emt 0:01:04]} Re8 {[%emt 0:02:56]} 24. Qe5 {[%emt 0:01:22]} Qg4 {[%emt 0:02:32] [#]} 25. h3 $1 {[%emt 0:00:41]} Qg6 {[%emt 0:00:40]} (25... Qf4 26. Rb1) 26. Kh2 {[%emt 0:01:12]} Bd3 {[%emt 0:05:27]} 27. Qg3 {[%emt 0:01:41]} Qxg3+ {[%emt 0:03:59]} 28. Kxg3 {[%emt 0:00:23] Ne5 is the strong threat.} Bb5 {[%emt 0:01:17]} (28... Bf5 $142 29. Rac1 Rb7) 29. a4 {[%emt 0:00:20]} Ba6 {[%emt 0:00:12]} 30. Ne5 {[%emt 0:00:15][%csl LRc6,LRf7]} Rc7 {[%emt 0:00:18]} 31. Bc5 {[%emt 0:04:15]} Rec8 {[%emt 0:01:41]} 32. Rab1 {[%emt 0:00:32]} g5 {[%emt 0:02:38]} 33. Rb6 {[%emt 0:01:06]} Be2 {[%emt 0:01:06]} 34. Rhb1 {[%emt 0:01:17]} h5 {[%emt 0:01:01]} 35. Rb8 {[%emt 0:01:41]} Kg7 {[%emt 0:00:55]} 36. Rxc8 {[%emt 0:02:24]} Rxc8 {[%emt 0:00:07]} 37. Rb7+ {[%emt 0:00:04]} Kg8 {[%emt 0:00:48]} (37... Kf6 $142 38. Bd4 Kf5) 38. h4 {[%emt 0:00:26]} g4 {[%emt 0:00:10]} 39. Kf4 {[%emt 0:00:06] White mates.} Bd1 {[%emt 0:00:30]} 40. Kg5 {[%emt 0:00:13]} g3 {[%emt 0:00:12]} 41. Kf6 {[%emt 0:50:14] Weighted Error Value: White=0.17 (very precise) /Black=0.56} 1-0

[Event "4NCL 2021-22"]
[Site "England"]
[Date "2022.04.30"]
[Round "7.9"]
[White "Shirov, Alexei"]
[Black "Moreby, James"]
[Result "1-0"]
[ECO "C02"]
[WhiteElo "2691"]
[BlackElo "2416"]
[Annotator "TA"]
[PlyCount "83"]
[EventDate "2021.11.27"]
[EventType "team-tourn"]
[EventCountry "ENG"]
[SourceTitle "playchess.com"]
[Source "ChessBase"]
[SourceQuality "1"]
[TimeControl "40/6000+30:3000+30"]

{[%evp 13,83,0,15,0,2,0,0,0,0,0,0,-27,48,0,8,0,37,33,25,18,53,50,52,55,63,53,47,0,0,-31,23,0,0,0,77,70,70,80,70,69,75,81,83,0,0,0,70,106,225,243,223,141,152,162,150,149,139,127,123,122,131,75,201,219,322,290,318,340,772,734,1231,1148]} 1. e4 {[%emt 0:00:03]} e6 {[%emt 0:00:05]} 2. d4 {[%emt 0:00:04]} d5 {[%emt 0:00:03]} 3. e5 {[%emt 0:00:11]} c5 {[%emt 0:00:05]} 4. c3 {[%emt 0:00:04]} Nc6 {[%emt 0:00:02]} 5. Nf3 {[%emt 0:00:05]} Bd7 {[%emt 0:00:04]} 6. Be2 {[%emt 0:01:21]} Nge7 {[%emt 0:00:25]} 7. Na3 {[%emt 0:03:04]} Ng6 {[%emt 0:03:33]} 8. h4 {[%emt 0:04:17] C02: French: Advance Variation.} Be7 {[%emt 0:08:12][%cal Rg6h4]} 9. h5 {[%emt 0:05:47]} Nh4 {[%emt 0:01:03]} 10. Nxh4 {[%emt 0:00:37] The position is equal.} Bxh4 {[%emt 0:00:05] [#]} 11. Bb5 $146 {[%emt 0:11:07]} ({Predecessor:} 11. Be3 cxd4 12. cxd4 O-O 13. Qd2 Be7 14. Nc2 Qb6 15. O-O Rac8 16. Rfc1 f6 17. exf6 Bxf6 {½-½ (43) Grosar,A (2470)-Baumegger,S (2495) Austria 1999}) 11... Be7 {[%emt 0:06:24]} 12. Qg4 {[%emt 0:00:12]} (12. Bxc6 $5 Bxc6 13. Nc2 $11) 12... Kf8 {[%emt 0:00:56]} (12... cxd4 $11 13. Qxg7 Rf8 14. Bxc6 Bxc6) 13. Rh3 {[%emt 0:05:50]} (13. h6 $14 g6 14. Bxc6 bxc6 15. dxc5) 13... cxd4 {[%emt 0:05:22]} 14. cxd4 {[%emt 0:09:58]} Qa5+ {[%emt 0:19:22]} 15. Bd2 {[%emt 0:00:36]} Bb4 {[%emt 0:00:45]} 16. Bc3 {[%emt 0:06:12]} Bxc3+ {[%emt 0:20:33]} 17. Rxc3 {[%emt 0:02:03]} Qb4 {[%emt 0:01:41][%csl LRb2,LRd4][%cal Oc6d4]} 18. O-O-O $1 {[%emt 0:10:53][%cal Ba1d1,Bd1d3,Bd3f3][%mdl 32]} Nxe5 $1 {[%emt 0:03:11]} 19. Qg3 {[%emt 0:00:09]} Bxb5 {[%emt 0:02:48]} 20. Qxe5 {[%emt 0:02:25]} (20. Nxb5 $14 {feels stronger.} Nc4 21. b3 Qxb5 22. bxc4 dxc4 23. d5) 20... Bc6 $11 {[%emt 0:01:28]} 21. Rdd3 {[%emt 0:11:15][%cal Oh5h6]} Rg8 {[%emt 0:08:25]} (21... Qe7 $15) 22. Rc5 $1 {[%emt 0:03:27][%mdl 1024] Threatens to win with Rb3. White has compensation.} Qb6 {[%emt 0:02:22]} 23. Nc2 {[%emt 0:07:05]} a5 {[%emt 0:02:53]} (23... Rc8 $11) 24. Rf3 {[%emt 0:09:19]} Re8 {[%emt 0:14:51]} (24... Be8 $2 25. Rc7 Rd8 26. Qf4 $18) 25. Ne3 $40 {[%emt 0:03:06][%mdl 128] White is out for blood.} ({Of course not} 25. Qf4 Re7 $11) 25... Qd8 {[%emt 0:01:24] Against Qd6+} 26. Qf4 {[%emt 0:01:17][%csl Gf3][%cal Rf4f7] 0x0.0022a1ce8b63dp-1022s more active pieces. The black rooks are badly placed.} f6 {[%emt 0:01:05] [#]} 27. h6 $1 {[%emt 0:05:33]} f5 {[%emt 0:03:55] [#]} 28. hxg7+ {[%emt 0:03:49]} ({But not} 28. Nxf5 $6 exf5 29. Qxf5+ Ke7 $11) (28. Ng4 $1 $16) 28... Rxg7 {[%emt 0:00:14]} 29. g4 {[%emt 0:00:04]} Kg8 {[%emt 0:00:09]} ({Black should try} 29... h5 $11) 30. gxf5 $14 {[%emt 0:05:11] f6 is the strong threat.} exf5 {[%emt 0:02:57]} (30... Qg5 $16) 31. Nxf5 $18 {[%emt 0:00:00]} ({Not} 31. Qxf5 Qh4 $11) 31... Rg1+ {[%emt 0:00:27]} 32. Kd2 {[%emt 0:00:00] aiming for Rg3+.} Qg5 {[%emt 0:00:53]} 33. Qxg5+ {[%emt 0:00:00]} Rxg5 {[%emt 0:00:02]} 34. Rxa5 {[%emt 0:00:00]} h5 {[%emt 0:01:06]} 35. Rg3 {[%emt 0:01:04]} Rxg3 {[%emt 0:00:05]} 36. fxg3 $16 {[%emt 0:00:05][%mdl 4096] Endgame KRB-KRN} Kh7 {[%emt 0:01:01]} 37. b4 {[%emt 0:00:50]} (37. Ra3 $142) 37... Rf8 {[%emt 0:00:22] This move loses the game for Black.} (37... Re4 $16) 38. Nh4 $18 {[%emt 0:01:12]} Rg8 {[%emt 0:00:32]} (38... Rf2+ {might work better.} 39. Kc3 Rf7) 39. b5 {[%emt 0:00:36]} Be8 {[%emt 0:00:18]} 40. Ra7 {[%emt 0:00:17]} Rxg3 $2 {[%emt 0:00:35]} (40... Rg7 41. a4 Rf7) 41. Rxb7+ {[%emt 0:50:13]} Kh8 {[%emt 0:50:30]} 42. Rb8 {[%emt 0:01:07] Weighted Error Value: White=0.13 (very precise) /Black=0.32} 1-0

[Event "4NCL 2021-22"]
[Site "England"]
[Date "2022.04.30"]
[Round "7.10"]
[White "Roberson, Peter T"]
[Black "Parligras, Mircea-Emilian"]
[Result "1-0"]
[ECO "B87"]
[WhiteElo "2425"]
[BlackElo "2575"]
[Annotator "TA"]
[PlyCount "43"]
[EventDate "2021.11.27"]
[EventType "team-tourn"]
[EventCountry "ENG"]
[SourceTitle "playchess.com"]
[Source "ChessBase"]
[SourceQuality "1"]
[TimeControl "40/6000+30:3000+30"]

{[%evp 15,43,0,12,11,3,0,0,0,35,22,24,24,48,50,67,63,58,71,75,86,184,187,183,183,196,179,29990,29991,29997,29998]} 1. e4 {[%emt 0:00:05]} c5 {[%emt 0:00:15]} 2. Nf3 {[%emt 0:00:13]} d6 {[%emt 0:00:07]} 3. d4 {[%emt 0:00:06]} cxd4 {[%emt 0:00:07]} 4. Nxd4 {[%emt 0:00:06]} Nf6 {[%emt 0:00:09]} 5. Nc3 {[%emt 0:00:06]} a6 {[%emt 0:00:05]} 6. Bc4 {[%emt 0:00:39]} e6 {[%emt 0:00:25]} 7. Be3 {[%emt 0:00:15]} b5 {[%emt 0:05:44] 7...b5 scores better than 7...Be7.} 8. Bb3 {[%emt 0:02:17]} Bb7 {[%emt 0:03:06]} 9. Qe2 {[%emt 0:02:53] B87: Sicilian Scheveningen/Najdorf: 6 Bc4, with early ...b5.} Nbd7 {[%emt 0:20:24]} 10. O-O-O {[%emt 0:02:32]} Rc8 {[%emt 0:11:34][%cal Oc8c3]} 11. f3 {[%emt 0:01:37] The position is equal.} Qa5 {[%emt 0:18:44] [#]} (11... Nc5 $5 {[%cal Rd8a5]}) 12. a3 $146 {[%emt 0:21:56]} ({Predecessor:} 12. Rhe1 Rxc3 13. bxc3 d5 14. Kb1 dxe4 15. Qd2 Nc5 16. c4 Qxd2 17. Bxd2 bxc4 18. Bxc4 {0-1 (27) Ibadov,D (2270)-Bocharov,D (2557) St Petersburg 2018}) 12... Rxc3 {[%emt 0:13:33]} 13. Qe1 $1 {[%emt 0:31:29][%mdl 64] Pin} b4 {[%emt 0:06:10][%cal Oc3e3] Hoping for ...Rxe3!} 14. bxc3 {[%emt 0:04:14]} bxc3 {[%emt 0:00:06]} 15. Kb1 {[%emt 0:05:49] aiming for Rd3.} d5 {[%emt 0:04:00]} 16. exd5 {[%emt 0:10:56]} Nxd5 {[%emt 0:08:21]} 17. Bc1 {[%emt 0:10:28][%cal Od4e6] Black must now prevent Nxe6!} Be7 {[%emt 0:04:58] [#]} (17... Qb6 $16 {was necessary.}) 18. Nxe6 $1 $18 {[%emt 0:03:59][%mdl 512]} fxe6 {[%emt 0:00:06]} 19. Qxe6 {[%emt 0:00:11]} Qb6 {[%emt 0:01:13]} 20. Rhe1 {[%emt 0:06:42] Strongly threatening Qg4. The board is on fire.} Nc5 $2 {[%emt 0:09:21]} (20... Qxe6 $18 21. Rxe6 Nc5) 21. Qxb6 {[%emt 0:01:30]} Nxb6 {[%emt 0:00:02] [#]} 22. Rxe7+ $1 {[%emt 0:01:36][%mdl 576] Remove Defender, Double Attack.  Weighted Error Value: White=0.01 (flawless) /Black=0.62} 1-0

[Event "4NCL 2021-22"]
[Site "England"]
[Date "2022.04.30"]
[Round "7.11"]
[White "Lupulescu, Constantin"]
[Black "Dong, Bao Nghia"]
[Result "1-0"]
[ECO "C02"]
[WhiteElo "2620"]
[BlackElo "2332"]
[Annotator "TA"]
[PlyCount "81"]
[EventDate "2021.11.27"]
[EventType "team-tourn"]
[EventCountry "ENG"]
[SourceTitle "playchess.com"]
[Source "ChessBase"]
[SourceQuality "1"]
[TimeControl "40/6000+30:3000+30"]

{[%evp 16,81,42,27,41,38,60,46,69,70,67,33,72,43,43,48,57,58,78,66,83,78,105,106,105,100,147,152,141,136,142,142,204,214,233,241,222,224,275,260,306,242,253,233,522,271,261,224,210,193,476,458,475,462,467,467,488,377,364,345,788,765,6295,668,29991,29992,29997,29998]} 1. e4 {[%emt 0:00:04] Atalik,S} e6 {[%emt 0:01:04]} 2. d4 {[%emt 0:00:04]} d5 {[%emt 0:00:07]} 3. e5 {[%emt 0:00:03]} c5 {[%emt 0:00:33]} 4. c3 {[%emt 0:00:04]} Nc6 {[%emt 0:03:04]} 5. Nf3 {[%emt 0:00:15]} Qb6 {[%emt 0:00:11]} 6. Be2 {[%emt 0:05:23]} Bd7 {[%emt 0:08:16]} 7. O-O {[%emt 0:02:42]} Nh6 {[%emt 0:01:06]} 8. Bxh6 {[%emt 0:07:29]} gxh6 {[%emt 0:00:32]} 9. Qd2 {[%emt 0:02:17]} Rc8 {[%emt 0:03:59] C02: French: Advance Variation.} 10. Na3 {[%emt 0:08:14]} cxd4 {[%emt 0:03:38]} 11. cxd4 {[%emt 0:00:48]} Qb4 {[%emt 0:00:07] White is slightly better.} 12. Qe3 {[%emt 0:06:48]} Ne7 {[%emt 0:01:55]} 13. Bd3 {[%emt 0:16:02] [#]} Bg7 $146 {[%emt 0:02:42]} ({Predecessor:} 13... Qxb2 14. Nb5 Nf5 15. Qf4 Bxb5 16. Rab1 Qxb1 17. Bxb1 Bxf1 18. Kxf1 Ne7 19. h4 Bg7 {½-½ (79) Stevic,H (2512)-Atalik,S (2575) Bled 2002 CBM 092 [Atalik,S]}) 14. Qe2 {[%emt 0:08:56]} (14. Nc2 $5 {[%cal Rc2b4]} Qb6 15. Qd2 $11) 14... a6 {[%emt 0:00:18]} 15. Nc2 {[%emt 0:07:23]} Qb6 {[%emt 0:03:02]} 16. Rad1 {[%emt 0:03:14][%cal Ba1d1,Bd1d3,Bd3b3][%mdl 32]} Ng6 {[%emt 0:08:04] Threatens to win with ...Nf4.} 17. g3 {[%emt 0:02:57] Prevents Nf4. White now steadily converts the win.} Bb5 {[%emt 0:02:48]} 18. Ne3 {[%emt 0:01:29]} Bxd3 {[%emt 0:05:16]} 19. Rxd3 {[%emt 0:00:27]} Rc6 {[%emt 0:00:34]} 20. h4 {[%emt 0:07:49][%cal Bh2h4,Bh4h5][%mdl 32]} Rg8 {[%emt 0:04:06]} (20... Ne7 $142) 21. h5 {[%emt 0:05:12]} Ne7 {[%emt 0:00:07]} 22. Rb3 {[%emt 0:01:20]} Qc7 {[%emt 0:05:40]} 23. Qd3 {[%emt 0:01:04] White is more active.} f5 {[%emt 0:05:44]} (23... Rh8 $16 24. Rc3 Kd8) 24. exf6 $1 $18 {[%emt 0:04:49]} Bxf6 {[%emt 0:00:05]} 25. Qxh7 {[%emt 0:00:21]} Rg7 {[%emt 0:00:07] [#]} 26. Qd3 {[%emt 0:01:43]} ({Worse is} 26. Qxh6 Ng8 27. Nxd5 Nxh6 $11) 26... Nc8 {[%emt 0:03:54][%cal Be7c8,Bc8d6,Bd6e4][%mdl 32]} 27. Re1 {[%emt 0:04:16] Strongly threatening Nxd5.} Rc1 {[%emt 0:14:03]} 28. Rc3 {[%emt 0:02:52]} Rxe1+ {[%emt 0:00:06]} 29. Nxe1 {[%emt 0:00:03]} Qb8 {[%emt 0:00:04]} (29... Qd7 30. Qd1 Nd6) 30. Nf3 {[%emt 0:03:55]} Nd6 {[%emt 0:01:02]} 31. Rc2 {[%emt 0:00:33]} Ne4 {[%emt 0:01:00]} 32. Ng2 {[%emt 0:00:34]} Be7 $2 {[%emt 0:12:29]} (32... Rc7 {was called for.} 33. Nf4 Kd7) 33. Qe3 {[%emt 0:00:51]} Bg5 {[%emt 0:06:28]} 34. Nxg5 {[%emt 0:00:24]} Rxg5 {[%emt 0:00:10]} 35. Nf4 {[%emt 0:01:00]} Kd7 {[%emt 0:00:07]} 36. Kf1 {[%emt 0:03:21]} Rf5 {[%emt 0:01:34]} 37. Kg2 {[%emt 0:01:47]} Qg8 $2 {[%emt 0:00:42]} (37... Rxf4 38. Qxf4 Qxf4 39. gxf4 Nd6) 38. Ng6 {[%emt 0:01:25]} Rxh5 {[%emt 0:08:45] [#]} 39. Ne5+ {[%emt 0:00:19]} (39. Qf4 $142 $1 Nd6 40. Nf8+ Qxf8 41. Qxf8) 39... Ke7 {[%emt 0:00:03]} 40. Rc7+ {[%emt 0:00:43]} Kf6 {[%emt 0:05:36]} 41. Qf4+ {[%emt 0:50:30] Weighted Error Value: White=0.35/Black=0.56} 1-0

[Event "4NCL 2021-22"]
[Site "England"]
[Date "2022.04.30"]
[Round "7.12"]
[White "Rendle, Thomas E"]
[Black "Csonka, Balazs"]
[Result "1/2-1/2"]
[ECO "D13"]
[WhiteElo "2365"]
[BlackElo "2483"]
[Annotator "TA"]
[PlyCount "36"]
[EventDate "2021.11.27"]
[EventType "team-tourn"]
[EventCountry "ENG"]
[SourceTitle "playchess.com"]
[Source "ChessBase"]
[SourceQuality "1"]
[TimeControl "40/6000+30:3000+30"]

{[%evp 15,22,32,25,22,33,20,41,18,45]} 1. d4 {[%emt 0:00:04]} d5 {[%emt 0:02:33]} 2. c4 {[%emt 0:00:17]} c6 {[%emt 0:03:22]} 3. cxd5 {[%emt 0:02:52]} cxd5 {[%emt 0:00:11]} 4. Nc3 {[%emt 0:00:07]} Nf6 {[%emt 0:00:08]} 5. Bf4 {[%emt 0:00:16]} Nc6 {[%emt 0:00:13]} 6. e3 {[%emt 0:00:16]} a6 {[%emt 0:02:20]} 7. Be2 {[%emt 0:01:11]} Bf5 {[%emt 0:05:58]} 8. Nf3 {[%emt 0:01:13]} e6 {[%emt 0:00:08]} 9. Qb3 {[%emt 0:09:34] D13: Slav Defence: Exchange variation without ...Bf5.} Bd6 {[%emt 0:00:12]} 10. Bxd6 {[%emt 0:03:20]} ({Of course not} 10. Qxb7 Na5 11. Qxa8 Qxa8 $15) 10... Qxd6 {[%emt 0:00:10]} 11. Qxb7 {[%emt 0:00:28]} O-O {[%emt 0:00:08] [#] Black did not feel at home in the position after the opening.  Weighted Error Value: White=0.00 (flawless) /Black=0.00 (flawless)} ({Don't take} 11... Rb8 12. Qxa6 O-O 13. O-O $16) {Predecessor:} 12. Qb3 $146 Rfb8 13. Qa3 Qxa3 14. bxa3 Ne4 15. Na4 Na7 16. Ne5 Nb5 17. f3 Nec3 18. Bxb5 Nxb5 {½-½ (103) Vidit,S (2670)-Korobov,A (2695) Dubai 2017} 1/2-1/2